fUSD/lending_fUSD_20250617
["ID","MTS","AMOUNT","RATE_DAILY","PERIOD"]
[366346234,1750200647604,-887.29,0.00016438,2]
[366346235,1750200647614,-490.0,0.00016438,2]
[366346236,1750200647623,-490.0,0.00016438,2]
[366346237,1750200647632,-490.0,0.00016438,2]
[366346238,1750200647642,-1187.23,0.00016438,2]
[366346239,1750200647651,-490.0,0.00016438,2]
[366346240,1750200647661,-490.0,0.00016438,2]
[366346241,1750200647670,-630.61,0.00016438,2]
[366346242,1750200647680,-490.0,0.00016438,2]
[366346243,1750200647689,-633.5,0.00016438,2]
[366346244,1750200647698,-490.0,0.00016438,2]
[366346245,1750200647708,-490.0,0.00016438,2]
[366346246,1750200647717,-490.0,0.00016438,2]
[366346247,1750200647727,-490.0,0.00016438,2]
[366346248,1750200647736,-490.0,0.00016438,2]
[366346249,1750200647746,-2842.44,0.00016438,2]
[366346250,1750200647755,-2086.41,0.00016438,2]
[366346251,1750200647765,-490.0,0.00016438,2]
[366346252,1750200647776,-490.0,0.00016438,2]
[366346253,1750200647789,-686.82,0.00016438,2]
[366346254,1750200647799,-490.0,0.00016438,2]
[366346255,1750200647809,-2248.49,0.00016438,2]
[366346256,1750200647818,-2069.48,0.00016438,2]
[366346257,1750200647829,-673.87,0.00016438,2]
[366346258,1750200647838,-648.05,0.00016438,2]
[366346259,1750200647848,-841.88,0.00016438,2]
[366346260,1750200647858,-490.0,0.00016438,2]
[366346261,1750200647868,-1421.52,0.00016438,2]
[366346262,1750200647878,-490.0,0.00016438,2]
[366346263,1750200647887,-660.26,0.00016438,2]
[366346264,1750200647897,-490.0,0.00016438,2]
[366346265,1750200647906,-490.0,0.00016438,2]
[366346266,1750200647915,-534.05,0.00016438,2]
[366346267,1750200647925,-490.0,0.00016438,2]
[366346268,1750200647935,-490.0,0.00016438,2]
[366346269,1750200647944,-490.0,0.00016438,2]
[366346270,1750200647954,-1554.25,0.00016438,2]
[366346271,1750200647963,-490.0,0.00016438,2]
[366346272,1750200647973,-490.0,0.00016438,2]
[366346273,1750200647983,-490.0,0.00016438,2]
[366346274,1750200647993,-490.0,0.00016438,2]
[366346275,1750200648002,-2966.3,0.00016438,2]
[366346276,1750200648011,-490.0,0.00016438,2]
[366346277,1750200648021,-490.0,0.00016438,2]
[366346278,1750200648030,-490.0,0.00016438,2]
[366346279,1750200648040,-1427.03,0.00016438,2]
[366346280,1750200648050,-490.0,0.00016438,2]
[366346281,1750200648059,-490.0,0.00016438,2]
[366346282,1750200648069,-490.0,0.00016438,2]
[366346283,1750200648078,-1485.9,0.00016438,2]
[366346284,1750200648088,-490.0,0.00016438,2]
[366346285,1750200648097,-2376.69,0.00016438,2]
[366346286,1750200648107,-490.0,0.00016438,2]
[366346287,1750200648116,-490.0,0.00016438,2]
[366346288,1750200648125,-1520.45,0.00016438,2]
[366346289,1750200648134,-151.0,0.00016438,2]
[366346290,1750200648143,-500.0,0.00016438,2]
[366346291,1750200648153,-151.0,0.00016438,2]
[366346292,1750200648162,-151.0,0.00016438,2]
[366346293,1750200648172,-151.0,0.00016438,2]
[366346294,1750200648181,-490.0,0.00016438,2]
[366346295,1750200648191,-490.0,0.00016438,2]
[366346296,1750200648200,-490.0,0.00016438,2]
[366346297,1750200648210,-490.0,0.00016438,2]
[366346298,1750200648220,-151.0,0.00016438,2]
[366346299,1750200648229,-490.0,0.00016438,2]
[366346300,1750200648239,-490.0,0.00016438,2]
[366346301,1750200648249,-151.0,0.00016438,2]
[366346302,1750200648258,-151.0,0.00016438,2]
[366346303,1750200648267,-151.0,0.00016438,2]
[366346304,1750200648278,-490.0,0.00016438,2]
[366346305,1750200648287,-490.0,0.00016438,2]
[366346306,1750200648297,-1478.73,0.00016438,2]
[366346307,1750200648307,-1525.16,0.00016438,2]
[366346308,1750200648316,-490.0,0.00016438,2]
[366346309,1750200648326,-312.91978808,0.00016438,2]
[366346310,1750200648335,-490.0,0.00016438,2]
[366346311,1750200648345,-569.188376,0.00016438,2]
[366346312,1750200648354,-569.188376,0.00016438,2]
[366346313,1750200648364,-490.0,0.00016438,2]
[366346314,1750200648374,-569.188376,0.00016438,2]
[366346315,1750200648385,-2123.21,0.00016438,2]
[366346316,1750200648395,-490.0,0.00016438,2]
[366346317,1750200648405,-490.0,0.00016438,2]
[366346318,1750200648415,-1237.99,0.00016438,2]
[366346319,1750200648425,-1934.96,0.00016438,2]
[366346320,1750200648434,-490.0,0.00016438,2]
[366346321,1750200648443,-1124.29,0.00016438,2]
[366346322,1750200648453,-490.0,0.00016438,2]
[366346323,1750200648462,-1404.534588,0.00016438,2]
[366346324,1750200648472,-1482.16,0.00016438,2]
[366346325,1750200648481,-490.0,0.00016438,2]
[366346326,1750200648491,-1404.534588,0.00016438,2]
[366346327,1750200648500,-490.0,0.00016438,2]
[366346328,1750200648510,-605.75,0.00016438,2]
[366346329,1750200648520,-490.0,0.00016438,2]
[366346330,1750200648531,-1404.534588,0.00016438,2]
[366346331,1750200648540,-737.32,0.00016438,2]
[366346332,1750200648550,-1404.534588,0.00016438,2]
[366346333,1750200648560,-490.0,0.00016438,2]
[366346334,1750200648570,-490.0,0.00016438,2]
[366346335,1750200648580,-490.0,0.00016438,2]
[366346336,1750200648589,-310.86949728,0.00016438,2]
[366346337,1750200648599,-2399.65,0.00016438,2]
[366346338,1750200648608,-305.49513989,0.00016438,2]
[366346339,1750200648618,-490.0,0.00016438,2]
[366346340,1750200648627,-490.0,0.00016438,2]
[366346341,1750200648637,-490.0,0.00016438,2]
[366346342,1750200648646,-490.0,0.00016438,2]
[366346343,1750200648656,-490.0,0.00016438,2]
[366346344,1750200648665,-490.0,0.00016438,2]
[366346345,1750200648675,-490.0,0.00016438,2]
[366346346,1750200648685,-490.0,0.00016438,2]
[366346347,1750200648695,-1296.65,0.00016438,2]
[366346348,1750200648705,-708.12,0.00016438,2]
[366346349,1750200648715,-490.0,0.00016438,2]
[366346350,1750200648724,-761.88,0.00016438,2]
[366346351,1750200648734,-490.0,0.00016438,2]
[366346352,1750200648744,-490.0,0.00016438,2]
[366346353,1750200648754,-490.0,0.00016438,2]
[366346354,1750200648764,-490.72,0.00016438,2]
[366346355,1750200648774,-490.0,0.00016438,2]
[366346356,1750200648785,-490.0,0.00016438,2]
[366346357,1750200648795,-858.69,0.00016438,2]
[366346358,1750200648805,-490.0,0.00016438,2]
[366346359,1750200648815,-845.23,0.00016438,2]
[366346360,1750200648826,-151.0,0.00016438,2]
[366346361,1750200648835,-1254.27,0.00016438,2]
[366346362,1750200648845,-151.0,0.00016438,2]
[366346363,1750200648854,-490.0,0.00016438,2]
[366346364,1750200648863,-151.0,0.00016438,2]
[366346365,1750200648874,-151.0,0.00016438,2]
[366346366,1750200648884,-151.0,0.00016438,2]
[366346367,1750200648894,-490.0,0.00016438,2]
[366346368,1750200648904,-151.0,0.00016438,2]
[366346369,1750200648913,-490.0,0.00016438,2]
[366346370,1750200648923,-490.0,0.00016438,2]
[366346371,1750200648933,-490.0,0.00016438,2]
[366346372,1750200648943,-490.0,0.00016438,2]
[366346373,1750200648953,-490.0,0.00016438,2]
[366346374,1750200648963,-490.0,0.00016438,2]
[366346375,1750200648973,-154.8104788,0.00016438,2]
[366346376,1750200648983,-490.0,0.00016438,2]
[366346377,1750200648992,-517.37,0.00016438,2]
[366346378,1750200649002,-490.0,0.00016438,2]
[366346379,1750200649012,-490.0,0.00016438,2]
[366346380,1750200649022,-490.0,0.00016438,2]
[366346381,1750200649032,-490.0,0.00016438,2]
[366346382,1750200649042,-490.0,0.00016438,2]
[366346383,1750200649051,-490.0,0.00016438,2]
[366346384,1750200649061,-490.0,0.00016438,2]
[366346385,1750200649070,-490.0,0.00016438,2]
[366346386,1750200649080,-490.0,0.00016438,2]
[366346387,1750200649089,-2205.52,0.00016438,2]
[366346388,1750200649098,-495.19,0.00016438,2]
[366346389,1750200649108,-234.69213133,0.00016438,2]
[366346390,1750200649117,-490.0,0.00016438,2]
[366346391,1750200649127,-490.0,0.00016438,2]
[366346392,1750200649136,-490.0,0.00016438,2]
[366346393,1750200649145,-971.35,0.00016438,2]
[366346394,1750200649155,-500.0,0.00016438,2]
[366346395,1750200649164,-490.0,0.00016438,2]
[366346396,1750200649173,-490.0,0.00016438,2]
[366346397,1750200649183,-500.0,0.00016438,2]
[366346398,1750200649192,-1474.16,0.00016438,2]
[366346399,1750200649202,-490.0,0.00016438,2]
[366346400,1750200649211,-1053.89,0.00016438,2]
[366346401,1750200649220,-546.61,0.00016438,2]
[366346402,1750200649230,-490.0,0.00016438,2]
[366346403,1750200649240,-490.0,0.00016438,2]
[366346404,1750200649250,-490.0,0.00016438,2]
[366346405,1750200649260,-490.0,0.00016438,2]
[366346406,1750200649270,-490.0,0.00016438,2]
[366346407,1750200649280,-490.0,0.00016438,2]
[366346408,1750200649289,-506.14,0.00016438,2]
[366346409,1750200649299,-490.0,0.00016438,2]
[366346410,1750200649308,-490.0,0.00016438,2]
[366346411,1750200649318,-2487.88,0.00016438,2]
[366346412,1750200649328,-528.79,0.00016438,2]
[366346413,1750200649338,-692.13,0.00016438,2]
[366346414,1750200649347,-420.291554,0.00016438,2]
[366346415,1750200649357,-420.291554,0.00016438,2]
[366346416,1750200649367,-420.291554,0.00016438,2]
[366346417,1750200649377,-420.291554,0.00016438,2]
[366346418,1750200649386,-583.29,0.00016438,2]
[366346419,1750200649396,-490.0,0.00016438,2]
[366346420,1750200649406,-609.5,0.00016438,2]
[366346421,1750200649415,-810.41,0.00016438,2]
[366346422,1750200649544,-1202.04,0.00016438,2]
[366346423,1750200649555,-2127.388849,0.00016438,2]
[366346424,1750200649565,-2127.388849,0.00016438,2]
[366346425,1750200649575,-2127.388849,0.00016438,2]
[366346426,1750200649585,-420.291554,0.00016438,2]
[366346427,1750200649595,-420.291554,0.00016438,2]
[366346428,1750200649605,-490.0,0.00016438,2]
[366346429,1750200649614,-420.291554,0.00016438,2]
[366346430,1750200649625,-490.0,0.00016438,2]
[366346431,1750200649635,-420.291554,0.00016438,2]
[366346432,1750200649645,-570.71,0.00016438,2]
[366346433,1750200649654,-461.826056,0.00016438,2]
[366346434,1750200649665,-556.65,0.00016438,2]
[366346435,1750200649675,-461.826056,0.00016438,2]
[366346436,1750200649684,-461.826056,0.00016438,2]
[366346437,1750200649695,-1483.0,0.00016438,2]
[366346438,1750200649704,-2840.51,0.00016438,2]
[366346439,1750200649715,-461.826056,0.00016438,2]
[366346440,1750200649724,-617.82,0.00016438,2]
[366346441,1750200649734,-461.826056,0.00016438,2]
[366346442,1750200649744,-490.0,0.00016438,2]
[366346443,1750200649754,-461.826056,0.00016438,2]
[366346444,1750200649764,-931.49,0.00016438,2]
[366346445,1750200649774,-439.62906638,0.00016438,2]
[366346446,1750200649785,-599.23,0.00016438,2]
[366346447,1750200649797,-490.0,0.00016438,2]
[366346448,1750200649807,-490.0,0.00016438,2]
[366346449,1750200649818,-490.0,0.00016438,2]
[366346450,1750200649828,-498.81,0.00016438,2]
[366346451,1750200649838,-2127.388849,0.00016438,2]
[366346452,1750200649848,-1231.07,0.00016438,2]
[366346453,1750200649858,-2127.388849,0.00016438,2]
[366346454,1750200649868,-2127.388849,0.00016438,2]
[366346455,1750200649879,-490.0,0.00016438,2]
[366346456,1750200649889,-490.0,0.00016438,2]
[366346457,1750200649898,-490.0,0.00016438,2]
[366346458,1750200649908,-490.0,0.00016438,2]
[366346459,1750200649918,-4592.45,0.00016438,2]
[366346460,1750200649928,-802.33,0.00016438,2]
[366346461,1750200649938,-2768.07,0.00016438,2]
[366346462,1750200649948,-151.0,0.00016438,2]
[366346463,1750200649958,-151.0,0.00016438,2]
[366346464,1750200649967,-151.0,0.00016438,2]
[366346465,1750200649977,-151.0,0.00016438,2]
[366346466,1750200649986,-490.0,0.00016438,2]
[366346467,1750200649996,-490.0,0.00016438,2]
[366346468,1750200650006,-490.0,0.00016438,2]
[366346469,1750200650016,-490.0,0.00016438,2]
[366346470,1750200650026,-490.0,0.00016438,2]
[366346471,1750200650036,-490.0,0.00016438,2]
[366346472,1750200650045,-490.0,0.00016438,2]
[366346473,1750200650055,-1906.66,0.00016438,2]
[366346474,1750200650065,-812.5,0.00016438,2]
[366346475,1750200650076,-670.53,0.00016438,2]
[366346476,1750200650085,-490.0,0.00016438,2]
[366346477,1750200650095,-490.0,0.00016438,2]
[366346478,1750200650105,-449.4308895,0.00016438,2]
[366346479,1750200650115,-490.0,0.00016438,2]
[366346480,1750200650126,-921.77,0.00016438,2]
[366346481,1750200650136,-388.91033342,0.00016438,2]
[366346482,1750200650146,-490.0,0.00016438,2]
[366346483,1750200650156,-490.0,0.00016438,2]
[366346484,1750200650166,-490.0,0.00016438,2]
[366346485,1750200650176,-540.99,0.00016438,2]
[366346486,1750200650185,-658.86,0.00016438,2]
[366346487,1750200650195,-1348.28,0.00016438,2]
[366346488,1750200650204,-151.0,0.00016438,2]
[366346489,1750200650212,-490.0,0.00016438,2]
[366346490,1750200650221,-490.0,0.00016438,2]
[366346491,1750200650231,-152.041317,0.00016438,2]
[366346492,1750200650240,-490.0,0.00016438,2]
[366346493,1750200650250,-1234.38,0.00016438,2]
[366346494,1750200650261,-490.0,0.00016438,2]
[366346495,1750200650271,-7330.51,0.00016438,2]
[366346496,1750200650281,-490.0,0.00016438,2]
[366346497,1750200650290,-490.0,0.00016438,2]
[366346498,1750200650301,-490.0,0.00016438,2]
[366346499,1750200650310,-1412.94,0.00016438,2]
[366346500,1750200650320,-490.0,0.00016438,2]
[366346501,1750200650330,-276.04221533,0.00016438,2]
[366346502,1750200650340,-6766.3,0.00016438,2]
[366346503,1750200650350,-551.92,0.00016438,2]
[366346504,1750200650360,-824.21,0.00016438,2]
[366346505,1750200650369,-490.0,0.00016438,2]
[366346506,1750200650379,-490.0,0.00016438,2]
[366346507,1750200650389,-490.0,0.00016438,2]
[366346508,1750200650399,-1872.59,0.00016438,2]
[366346509,1750200650409,-365.53,0.00016438,2]
[366346510,1750200650419,-750.72,0.00016438,2]
[366346511,1750200650429,-490.0,0.00016438,2]
[366346512,1750200650439,-1135.17,0.00016438,2]
[366346513,1750200650449,-490.0,0.00016438,2]
[366346514,1750200650459,-490.0,0.00016438,2]
[366346515,1750200650470,-490.0,0.00016438,2]
[366346516,1750200650480,-490.0,0.00016438,2]
[366346517,1750200650490,-1857.12,0.00016438,2]
[366346518,1750200650501,-490.0,0.00016438,2]
[366346519,1750200650511,-490.0,0.00016438,2]
[366346520,1750200650522,-386.15052993,0.00016438,2]
[366346521,1750200650532,-1340.74,0.00016438,2]
[366346522,1750200650542,-490.0,0.00016438,2]
[366346523,1750200650552,-151.0,0.00016438,2]
[366346524,1750200650563,-16124.31,0.00016438,2]
[366346525,1750200650574,-151.0,0.00016438,2]
[366346526,1750200650584,-490.0,0.00016438,2]
[366346527,1750200650593,-151.0,0.00016438,2]
[366346528,1750200650603,-2093.59,0.00016438,2]
[366346529,1750200650613,-574.35,0.00016438,2]
[366346530,1750200650622,-151.0,0.00016438,2]
[366346531,1750200650632,-490.0,0.00016438,2]
[366346532,1750200650642,-490.0,0.00016438,2]
[366346533,1750200650652,-490.0,0.00016438,2]
[366346534,1750200650662,-490.0,0.00016438,2]
[366346535,1750200650672,-490.0,0.00016438,2]
[366346536,1750200650682,-4135.51,0.00016438,2]
[366346537,1750200650692,-490.0,0.00016438,2]
[366346538,1750200650702,-490.0,0.00016438,2]
[366346539,1750200650712,-873.33,0.00016438,2]
[366346540,1750200650721,-490.0,0.00016438,2]
[366346541,1750200650731,-1423.95,0.00016438,2]
[366346542,1750200650741,-500.0,0.00016438,2]
[366346543,1750200650752,-490.0,0.00016438,2]
[366346544,1750200650761,-490.0,0.00016438,2]
[366346545,1750200650771,-1069.97,0.00016438,2]
[366346546,1750200650781,-353.83664085,0.00016438,2]
[366346547,1750200650793,-2875.49,0.00016438,2]
[366346548,1750200650803,-490.0,0.00016438,2]
[366346549,1750200650813,-401.75819343,0.00016438,2]
[366346550,1750200650823,-258.393497,0.00016438,2]
[366346551,1750200650834,-1038.77,0.00016438,2]
[366346552,1750200650844,-1579.0,0.00016438,2]
[366346553,1750200650854,-9074.49,0.00016438,2]
[366346554,1750200650864,-659.26,0.00016438,2]
[366346555,1750200650874,-451.6063977,0.00016438,2]
[366346556,1750200650884,-1005.16,0.00016438,2]
[366346557,1750200650894,-490.0,0.00016438,2]
[366346558,1750200650904,-1159.75,0.00016438,2]
[366346559,1750200650914,-490.0,0.00016438,2]
[366346560,1750200650923,-1428.79,0.00016438,2]
[366346561,1750200650933,-2318.4,0.00016438,2]
[366346562,1750200650943,-3610.49,0.00016438,2]
[366346563,1750200650952,-490.0,0.00016438,2]
[366346564,1750200650962,-1446.43,0.00016438,2]
[366346565,1750200650971,-794.19,0.00016438,2]
[366346566,1750200650981,-1968.28,0.00016438,2]
[366346567,1750200650991,-490.0,0.00016438,2]
[366346568,1750200651002,-490.0,0.00016438,2]
[366346569,1750200651012,-1827.57,0.00016438,2]
[366346570,1750200651022,-490.0,0.00016438,2]
[366346571,1750200651031,-22676.83,0.00016438,2]
[366346572,1750200651042,-490.0,0.00016438,2]
[366346573,1750200651051,-490.0,0.00016438,2]
[366346574,1750200651061,-490.0,0.00016438,2]
[366346575,1750200651071,-490.0,0.00016438,2]
[366346576,1750200651081,-490.0,0.00016438,2]
[366346577,1750200651091,-1526.89,0.00016438,2]
[366346578,1750200651100,-2649.27,0.00016438,2]
[366346579,1750200651110,-894.69,0.00016438,2]
[366346580,1750200651120,-490.0,0.00016438,2]
[366346581,1750200651129,-490.0,0.00016438,2]
[366346582,1750200651140,-1050.73,0.00016438,2]
[366346583,1750200651149,-674.44,0.00016438,2]
[366346584,1750200651159,-490.0,0.00016438,2]
[366346585,1750200651169,-490.0,0.00016438,2]
[366346586,1750200651179,-2907.33,0.00016438,2]
[366346587,1750200651189,-490.0,0.00016438,2]
[366346588,1750200651199,-490.0,0.00016438,2]
[366346589,1750200651208,-490.0,0.00016438,2]
[366346590,1750200651218,-490.0,0.00016438,2]
[366346591,1750200651228,-938.0,0.00016438,2]
[366346592,1750200651238,-963.2,0.00016438,2]
[366346593,1750200651248,-282.50917447,0.00016438,2]
[366346594,1750200651258,-490.0,0.00016438,2]
[366346595,1750200651270,-1468.87,0.00016438,2]
[366346596,1750200651281,-151.0,0.00016438,2]
[366346597,1750200651290,-151.0,0.00016438,2]
[366346598,1750200651300,-1968.44,0.00016438,2]
[366346599,1750200651309,-151.0,0.00016438,2]
[366346600,1750200651319,-2145.73,0.00016438,2]
[366346601,1750200651329,-151.0,0.00016438,2]
[366346602,1750200651339,-490.0,0.00016438,2]
[366346603,1750200651350,-4079.93,0.00016438,2]
[366346604,1750200651360,-1842.43,0.00016438,2]
[366346605,1750200651369,-490.0,0.00016438,2]
[366346606,1750200651379,-155.79886,0.00016438,2]
[366346607,1750200651389,-2215.92,0.00016438,2]
[366346608,1750200651398,-490.0,0.00016438,2]
[366346609,1750200651408,-490.0,0.00016438,2]
[366346610,1750200651418,-155.79886,0.00016438,2]
[366346611,1750200651428,-155.79886,0.00016438,2]
[366346612,1750200651438,-155.79886,0.00016438,2]
[366346613,1750200651449,-1391.89,0.00016438,2]
[366346614,1750200651458,-490.0,0.00016438,2]
[366346615,1750200651468,-155.79886,0.00016438,2]
[366346616,1750200651478,-151.0,0.00016438,2]
[366346617,1750200651488,-155.79886,0.00016438,2]
[366346618,1750200651498,-151.0,0.00016438,2]
[366346619,1750200651508,-155.79886,0.00016438,2]
[366346620,1750200651517,-151.0,0.00016438,2]
[366346621,1750200651528,-615.89,0.00016438,2]
[366346622,1750200651538,-490.0,0.00016438,2]
[366346623,1750200651548,-155.79886,0.00016438,2]
[366346624,1750200651558,-490.0,0.00016438,2]
[366346625,1750200651568,-3632.95,0.00016438,2]
[366346626,1750200651577,-3334.0,0.00016438,2]
[366346627,1750200651587,-7532.51,0.00016438,2]
[366346628,1750200651597,-490.0,0.00016438,2]
[366346629,1750200651607,-2261.26,0.00016438,2]
[366346630,1750200651616,-490.0,0.00016438,2]
[366346631,1750200651626,-490.0,0.00016438,2]
[366346632,1750200651635,-490.0,0.00016438,2]
[366346633,1750200651645,-490.0,0.00016438,2]
[366346634,1750200651655,-734.61,0.00016438,2]
[366346635,1750200651665,-490.0,0.00016438,2]
[366346636,1750200651675,-490.0,0.00016438,2]
[366346637,1750200651686,-490.0,0.00016438,2]
[366346638,1750200651697,-820.43,0.00016438,2]
[366346639,1750200651707,-490.0,0.00016438,2]
[366346640,1750200651717,-520.14931717,0.00016438,2]
[366346641,1750200651727,-151.0,0.00016438,2]
[366346642,1750200651737,-490.0,0.00016438,2]
[366346643,1750200651748,-151.0,0.00016438,2]
[366346644,1750200652072,-151.0,0.00016438,2]
[366346645,1750200652096,-151.0,0.00016438,2]
[366346646,1750200652106,-2561.5,0.00016438,2]
[366346647,1750200652116,-1174.4,0.00016438,2]
[366346648,1750200652125,-490.0,0.00016438,2]
[366346649,1750200652135,-498.65,0.00016438,2]
[366346650,1750200652145,-2983.35,0.00016438,2]
[366346651,1750200652156,-490.0,0.00016438,2]
[366346652,1750200652165,-2037.9,0.00016438,2]
[366346653,1750200652175,-151.0,0.00016438,2]
[366346654,1750200652185,-460.0,0.00016438,2]
[366346655,1750200652195,-151.0,0.00016438,2]
[366346656,1750200652205,-151.0,0.00016438,2]
[366346657,1750200652214,-490.0,0.00016438,2]
[366346658,1750200652223,-154.281566,0.00016438,2]
[366346659,1750200652233,-3941.69,0.00016438,2]
[366346660,1750200652243,-490.0,0.00016438,2]
[366346661,1750200652253,-1140.795429,0.00016438,2]
[366346662,1750200652263,-1140.795429,0.00016438,2]
[366346663,1750200652273,-1140.795429,0.00016438,2]
[366346664,1750200652283,-526.97,0.00016438,2]
[366346665,1750200652293,-490.0,0.00016438,2]
[366346666,1750200652303,-490.0,0.00016438,2]
[366346667,1750200652312,-1140.795429,0.00016438,2]
[366346668,1750200652323,-490.0,0.00016438,2]
[366346669,1750200652333,-490.0,0.00016438,2]
[366346670,1750200652343,-490.0,0.00016438,2]
[366346671,1750200652353,-618.28,0.00016438,2]
[366346672,1750200652363,-178.169629,0.00016438,2]
[366346673,1750200652372,-490.0,0.00016438,2]
[366346674,1750200652382,-178.169629,0.00016438,2]
[366346675,1750200652392,-580.96,0.00016438,2]
[366346676,1750200652401,-490.0,0.00016438,2]
[366346677,1750200652412,-178.169629,0.00016438,2]
[366346678,1750200652424,-490.0,0.00016438,2]
[366346679,1750200652434,-178.169629,0.00016438,2]
[366346680,1750200652443,-461.71379467,0.00016438,2]
[366346681,1750200652453,-9320.61,0.00016438,2]
[366346682,1750200652463,-5194.17,0.00016438,2]
[366346683,1750200652472,-490.0,0.00016438,2]
[366346684,1750200652482,-178.169629,0.00016438,2]
[366346685,1750200652492,-490.0,0.00016438,2]
[366346686,1750200652502,-178.169629,0.00016438,2]
[366346687,1750200652513,-1896.12,0.00016438,2]
[366346688,1750200652523,-178.169629,0.00016438,2]
[366346689,1750200652533,-490.0,0.00016438,2]
[366346690,1750200652543,-490.0,0.00016438,2]
[366346691,1750200652552,-178.169629,0.00016438,2]
[366346692,1750200652562,-490.0,0.00016438,2]
[366346693,1750200652571,-490.0,0.00016438,2]
[366346694,1750200652581,-2818.18,0.00016438,2]
[366346695,1750200652591,-1859.25,0.00016438,2]
[366346696,1750200652602,-535.35935745,0.00016438,2]
[366346697,1750200652612,-160.488674,0.00016438,2]
[366346698,1750200652623,-490.0,0.00016438,2]
[366346699,1750200652633,-490.0,0.00016438,2]
[366346700,1750200652644,-490.0,0.00016438,2]
[366346701,1750200652655,-238.67909628,0.00016438,2]
[366346702,1750200652665,-504.42,0.00016438,2]
[366346703,1750200652676,-1851.45,0.00016438,2]
[366346704,1750200652687,-490.0,0.00016438,2]
[366346705,1750200652697,-337.94850353,0.00016438,2]
[366346706,1750200652707,-490.0,0.00016438,2]
[366346707,1750200652717,-151.0,0.00016438,2]
[366346708,1750200652726,-1063.06,0.00016438,2]
[366346709,1750200652736,-151.0,0.00016438,2]
[366346710,1750200652746,-490.0,0.00016438,2]
[366346711,1750200652756,-490.0,0.00016438,2]
[366346712,1750200652766,-151.0,0.00016438,2]
[366346713,1750200652776,-151.0,0.00016438,2]
[366346714,1750200652788,-151.0,0.00016438,2]
[366346715,1750200652800,-151.0,0.00016438,2]
[366346716,1750200652810,-490.0,0.00016438,2]
[366346717,1750200652820,-490.0,0.00016438,2]
[366346718,1750200652831,-1078.92,0.00016438,2]
[366346719,1750200652841,-151.0,0.00016438,2]
[366346720,1750200652851,-2563.43,0.00016438,2]
[366346721,1750200652861,-151.0,0.00016438,2]
[366346722,1750200652872,-1426.59,0.00016438,2]
[366346723,1750200652882,-998.47,0.00016438,2]
[366346724,1750200652893,-588.39935068,0.00016438,2]
[366346725,1750200652903,-567.21205508,0.00016438,2]
[366346726,1750200652913,-151.0,0.00016438,2]
[366346727,1750200652923,-151.0,0.00016438,2]
[366346728,1750200652933,-490.0,0.00016438,2]
[366346729,1750200652942,-858.73,0.00016438,2]
[366346730,1750200652952,-151.0,0.00016438,2]
[366346731,1750200652962,-354.75576233,0.00016438,2]
[366346732,1750200652971,-151.0,0.00016438,2]
[366346733,1750200652981,-490.0,0.00016438,2]